[Event "Titled Tuesday Blitz February 07 Late 2023"]
[White "Jarocka, Liwia"]
[Black "Sadovsky, Artem"]
[WhiteFideId "21807558"]
[BlackFideId "4155840"]
[WhiteElo "2225"]
[BlackElo "2276"]
[Result "0-1"]
[Round "08"]
[TimeControl "180+2"]
[Date "2023.02.07"]
[WhiteClock "0:01:12"]
[BlackClock "0:01:25"]

1. d4 {[%clk 0:03:00]}  g6 {[%clk 0:02:51]} 2. c4 {[%clk 0:03:00]}  Bg7 {[%clk 0:02:51]} 3. Nf3 {[%clk 0:03:00]}  d6 {[%clk 0:02:52]} 4. g3 {[%clk 0:03:00]}  e5 {[%clk 0:02:52]} 5. Bg2 {[%clk 0:02:58]}  e4 {[%clk 0:02:52]} 6. Nfd2 {[%clk 0:02:58]}  f5 {[%clk 0:02:52]} 7. e3 {[%clk 0:02:58]}  Nf6 {[%clk 0:02:53]} 8. O-O {[%clk 0:02:58]}  O-O {[%clk 0:02:53]} 9. Nc3 {[%clk 0:02:57]}  c6 {[%clk 0:02:54]} 10. b3 {[%clk 0:02:57]}  d5 {[%clk 0:02:53]} 11. Bb2 {[%clk 0:02:57]}  Be6 {[%clk 0:02:52]} 12. Rc1 {[%clk 0:02:57]}  a6 {[%clk 0:02:52]} 13. Na4 {[%clk 0:02:55]}  Nbd7 {[%clk 0:02:52]} 14. Nc5 {[%clk 0:02:51]}  Nxc5 {[%clk 0:02:47]} 15. dxc5 {[%clk 0:02:52]}  Ng4 {[%clk 0:02:40]} 16. Bxg7 {[%clk 0:02:50]}  Kxg7 {[%clk 0:02:41]} 17. cxd5 {[%clk 0:02:50]}  Bxd5 {[%clk 0:02:42]} 18. Nc4 {[%clk 0:02:49]}  Bxc4 {[%clk 0:02:39]} 19. Rxc4 {[%clk 0:02:48]}  Qxd1 {[%clk 0:02:36]} 20. Rxd1 {[%clk 0:02:49]}  Rfd8 {[%clk 0:02:36]} 21. Rcd4 {[%clk 0:02:47]}  Rxd4 {[%clk 0:02:37]} 22. Rxd4 {[%clk 0:02:46]}  Ne5 {[%clk 0:02:35]} 23. Kf1 {[%clk 0:02:33]}  a5 {[%clk 0:02:31]} 24. Ke2 {[%clk 0:02:33]}  Kf6 {[%clk 0:02:29]} 25. f3 {[%clk 0:02:18]}  exf3+ {[%clk 0:02:29]} 26. Bxf3 {[%clk 0:02:18]}  Ke7 {[%clk 0:02:29]} 27. Bg2 {[%clk 0:02:09]}  Nd7 {[%clk 0:02:23]} 28. Rc4 {[%clk 0:02:03]}  Re8 {[%clk 0:02:08]} 29. a3 {[%clk 0:02:01]}  Kf6 {[%clk 0:01:58]} 30. b4 {[%clk 0:01:59]}  axb4 {[%clk 0:01:59]} 31. axb4 {[%clk 0:01:59]}  Ra8 {[%clk 0:02:00]} 32. Rd4 {[%clk 0:01:55]}  Ne5 {[%clk 0:01:56]} 33. Rd2 {[%clk 0:01:49]}  Ra4 {[%clk 0:01:55]} 34. b5 {[%clk 0:01:49]}  Ke7 {[%clk 0:01:49]} 35. bxc6 {[%clk 0:01:47]}  bxc6 {[%clk 0:01:50]} 36. Rb2 {[%clk 0:01:39]}  Rc4 {[%clk 0:01:41]} 37. Rb7+ {[%clk 0:01:33]}  Kf6 {[%clk 0:01:42]} 38. Rxh7 {[%clk 0:01:32]}  Rc2+ {[%clk 0:01:40]} 39. Kf1 {[%clk 0:01:32]}  Rxc5 {[%clk 0:01:36]} 40. e4 {[%clk 0:01:32]}  Rc1+ {[%clk 0:01:32]} 41. Ke2 {[%clk 0:01:32]}  Rc2+ {[%clk 0:01:33]} 42. Kf1 {[%clk 0:01:32]}  Ng4 {[%clk 0:01:32]} 43. Bf3 {[%clk 0:01:16]}  Nxh2+ {[%clk 0:01:30]} 44. Rxh2 {[%clk 0:01:15]}  Rxh2 {[%clk 0:01:31]} 45. exf5 {[%clk 0:01:16]}  Kxf5 {[%clk 0:01:25]} 46. Bxc6 {[%clk 0:01:15]}  Kg4 {[%clk 0:01:26]} 47. Kg1 {[%clk 0:01:16]}  Rd2 {[%clk 0:01:25]} 48. Be4 {[%clk 0:01:14]}  Kxg3 {[%clk 0:01:25]} 49. Bxg6 {[%clk 0:01:12]}  Rd1# {[%clk 0:01:25]} 0-1


[Site "https://www.chess.com"]

[Event "Titled Tuesday Blitz February 07 Late 2023"]
[White "Jenkins, Drake"]
[Black "Papayan, Oleg"]
[WhiteFideId "2022397"]
[BlackFideId "4193911"]
[WhiteElo "2130"]
[BlackElo "2253"]
[Result "1-0"]
[Round "08"]
[TimeControl "180+2"]
[Date "2023.02.07"]
[WhiteClock "0:01:15"]
[BlackClock "0:00:07"]

1. Nf3 {[%clk 0:03:00]}  Nf6 {[%clk 0:02:56]} 2. c4 {[%clk 0:03:00]}  c5 {[%clk 0:02:56]} 3. d4 {[%clk 0:03:00]}  cxd4 {[%clk 0:02:56]} 4. Nxd4 {[%clk 0:03:01]}  Nc6 {[%clk 0:02:57]} 5. Nc3 {[%clk 0:03:01]}  g6 {[%clk 0:02:56]} 6. g3 {[%clk 0:03:00]}  e5 {[%clk 0:02:55]} 7. Nc2 {[%clk 0:02:59]}  Bg7 {[%clk 0:02:47]} 8. Bg2 {[%clk 0:02:59]}  O-O {[%clk 0:02:48]} 9. O-O {[%clk 0:03:00]}  d6 {[%clk 0:02:39]} 10. b3 {[%clk 0:02:59]}  Re8 {[%clk 0:02:37]} 11. Ba3 {[%clk 0:02:58]}  Bf8 {[%clk 0:02:26]} 12. Ne3 {[%clk 0:02:45]}  a6 {[%clk 0:02:18]} 13. Qd2 {[%clk 0:02:39]}  Qa5 {[%clk 0:01:45]} 14. Bb2 {[%clk 0:02:38]}  Be6 {[%clk 0:01:42]} 15. Rfd1 {[%clk 0:02:37]}  Rad8 {[%clk 0:01:42]} 16. Bxc6 {[%clk 0:02:26]}  bxc6 {[%clk 0:01:43]} 17. Ncd5 {[%clk 0:02:26]}  Qxd2 {[%clk 0:00:48]} 18. Nxf6+ {[%clk 0:02:26]}  Kh8 {[%clk 0:00:49]} 19. Rxd2 {[%clk 0:02:24]}  Re7 {[%clk 0:00:49]} 20. c5 {[%clk 0:02:19]}  Bg7 {[%clk 0:00:47]} 21. Rxd6 {[%clk 0:02:03]}  Rb8 {[%clk 0:00:25]} 22. Bxe5 {[%clk 0:02:01]}  Rc8 {[%clk 0:00:23]} 23. Rad1 {[%clk 0:01:55]}  Bd5 {[%clk 0:00:14]} 24. Nfxd5 {[%clk 0:01:47]}  Rxe5 {[%clk 0:00:12]} 25. Nb6 {[%clk 0:01:41]}  Rf8 {[%clk 0:00:12]} 26. Rxc6 {[%clk 0:01:36]}  h5 {[%clk 0:00:12]} 27. Kf1 {[%clk 0:01:30]}  Rfe8 {[%clk 0:00:10]} 28. Nbc4 {[%clk 0:01:26]}  R5e6 {[%clk 0:00:09]} 29. Rxe6 {[%clk 0:01:25]}  Rxe6 {[%clk 0:00:10]} 30. Rd6 {[%clk 0:01:24]}  Re4 {[%clk 0:00:08]} 31. c6 {[%clk 0:01:24]}  Re7 {[%clk 0:00:06]} 32. Rd7 {[%clk 0:01:24]}  Rxd7 {[%clk 0:00:06]} 33. cxd7 {[%clk 0:01:23]}  Bf6 {[%clk 0:00:07]} 34. Nd6 {[%clk 0:01:20]}  Kg8 {[%clk 0:00:07]} 35. Nd5 {[%clk 0:01:18]}  Bd8 {[%clk 0:00:07]} 36. Nb7 {[%clk 0:01:18]}  Bg5 {[%clk 0:00:05]} 37. f4 {[%clk 0:01:18]}  Bd8 {[%clk 0:00:04]} 38. Nxd8 {[%clk 0:01:18]}  Kf8 {[%clk 0:00:05]} 39. Nc6 {[%clk 0:01:17]}  h4 {[%clk 0:00:06]} 40. d8=Q+ {[%clk 0:01:16]}  Kg7 {[%clk 0:00:06]} 41. Qf6+ {[%clk 0:01:17]}  Kh7 {[%clk 0:00:06]} 42. Qxf7+ {[%clk 0:01:16]}  Kh6 {[%clk 0:00:07]} 43. Nf6 {[%clk 0:01:15]}  a5 {[%clk 0:00:07]} 44. Qh7# {[%clk 0:01:15]} 1-0


[Site "https://www.chess.com"]

[Event "Titled Tuesday Blitz February 07 Late 2023"]
[White "Kovalevsky, Stanislav"]
[Black "Hoffmann, Asa"]
[WhiteFideId "13508598"]
[BlackFideId "2001470"]
[WhiteElo "2237"]
[BlackElo "2185"]
[Result "1/2-1/2"]
[Round "08"]
[TimeControl "180+2"]
[Date "2023.02.07"]
[WhiteClock "0:00:47"]
[BlackClock "0:01:00"]

1. c4 {[%clk 0:03:00]}  Nf6 {[%clk 0:02:23]} 2. Nc3 {[%clk 0:03:00]}  d6 {[%clk 0:02:22]} 3. g3 {[%clk 0:03:01]}  c6 {[%clk 0:02:21]} 4. Bg2 {[%clk 0:03:01]}  e5 {[%clk 0:02:21]} 5. e4 {[%clk 0:03:02]}  Be6 {[%clk 0:02:21]} 6. d3 {[%clk 0:03:01]}  d5 {[%clk 0:02:20]} 7. cxd5 {[%clk 0:02:57]}  cxd5 {[%clk 0:02:17]} 8. Qa4+ {[%clk 0:02:52]}  Nc6 {[%clk 0:02:15]} 9. Bg5 {[%clk 0:02:52]}  d4 {[%clk 0:02:09]} 10. Nd5 {[%clk 0:02:46]}  Be7 {[%clk 0:02:00]} 11. Nxe7 {[%clk 0:02:28]}  Qxe7 {[%clk 0:01:58]} 12. Nf3 {[%clk 0:02:19]}  Qb4+ {[%clk 0:01:55]} 13. Qxb4 {[%clk 0:02:18]}  Nxb4 {[%clk 0:01:55]} 14. Kd2 {[%clk 0:02:18]}  Nd7 {[%clk 0:01:54]} 15. a3 {[%clk 0:02:11]}  Nc6 {[%clk 0:01:54]} 16. Ke2 {[%clk 0:02:02]}  f6 {[%clk 0:01:51]} 17. Bd2 {[%clk 0:02:02]}  a5 {[%clk 0:01:50]} 18. h4 {[%clk 0:01:58]}  Ke7 {[%clk 0:01:48]} 19. Bh3 {[%clk 0:01:58]}  Nc5 {[%clk 0:01:44]} 20. Bxe6 {[%clk 0:01:57]}  Kxe6 {[%clk 0:01:43]} 21. b4 {[%clk 0:01:42]}  Nb3 {[%clk 0:01:40]} 22. Rab1 {[%clk 0:01:40]}  a4 {[%clk 0:01:38]} 23. Be1 {[%clk 0:01:25]}  Na7 {[%clk 0:01:35]} 24. Nd2 {[%clk 0:01:22]}  Nxd2 {[%clk 0:01:28]} 25. Bxd2 {[%clk 0:01:20]}  Nb5 {[%clk 0:01:28]} 26. Rbc1 {[%clk 0:01:14]}  Rhc8 {[%clk 0:01:25]} 27. Rxc8 {[%clk 0:01:14]}  Rxc8 {[%clk 0:01:24]} 28. Rc1 {[%clk 0:01:14]}  Rc6 {[%clk 0:01:16]} 29. Rxc6+ {[%clk 0:01:09]}  bxc6 {[%clk 0:01:15]} 30. Bc1 {[%clk 0:01:08]}  g6 {[%clk 0:01:14]} 31. Bb2 {[%clk 0:01:03]}  f5 {[%clk 0:01:13]} 32. f3 {[%clk 0:01:01]}  h6 {[%clk 0:01:11]} 33. Bc1 {[%clk 0:01:00]}  g5 {[%clk 0:01:07]} 34. hxg5 {[%clk 0:00:57]}  hxg5 {[%clk 0:01:07]} 35. Bb2 {[%clk 0:00:51]}  g4 {[%clk 0:01:04]} 36. fxg4 {[%clk 0:00:50]}  fxg4 {[%clk 0:01:01]} 37. Bc1 {[%clk 0:00:48]}  Kd6 {[%clk 0:01:00]} 38. Bb2 {[%clk 0:00:47]}  c5 {[%clk 0:01:00]} 39. bxc5+ {[%clk 0:00:46]}  Kxc5 {[%clk 0:01:00]} 40. Bc1 {[%clk 0:00:47]} 1/2-1/2


[Site "https://www.chess.com"]

[Event "Titled Tuesday Blitz February 07 Late 2023"]
[White "Pinheiro, Iung Alicio de O."]
[Black "Torres Dominguez, David"]
[WhiteFideId "2104350"]
[BlackFideId "2220857"]
[WhiteElo "2306"]
[BlackElo "1994"]
[Result "1/2-1/2"]
[Round "08"]
[TimeControl "180+2"]
[Date "2023.02.07"]
[WhiteClock "0:00:05"]
[BlackClock "0:00:04"]

1. e4 {[%clk 0:03:00]}  Nc6 {[%clk 0:02:56]} 2. Nf3 {[%clk 0:02:59]}  e5 {[%clk 0:02:55]} 3. Bb5 {[%clk 0:02:57]}  Nge7 {[%clk 0:02:55]} 4. c3 {[%clk 0:02:56]}  g6 {[%clk 0:02:54]} 5. h4 {[%clk 0:02:54]}  h6 {[%clk 0:02:52]} 6. d4 {[%clk 0:02:52]}  Bg7 {[%clk 0:02:47]} 7. h5 {[%clk 0:02:30]}  exd4 {[%clk 0:02:38]} 8. hxg6 {[%clk 0:02:26]}  fxg6 {[%clk 0:02:34]} 9. cxd4 {[%clk 0:02:19]}  d5 {[%clk 0:02:31]} 10. e5 {[%clk 0:02:09]}  Bg4 {[%clk 0:02:20]} 11. Be3 {[%clk 0:01:59]}  Nf5 {[%clk 0:02:21]} 12. Qa4 {[%clk 0:01:41]}  O-O {[%clk 0:02:16]} 13. Bxc6 {[%clk 0:01:37]}  bxc6 {[%clk 0:02:14]} 14. Nbd2 {[%clk 0:01:34]}  Nxe3 {[%clk 0:02:00]} 15. fxe3 {[%clk 0:01:33]}  c5 {[%clk 0:02:00]} 16. dxc5 {[%clk 0:01:26]}  Qd7 {[%clk 0:01:51]} 17. Qxd7 {[%clk 0:01:18]}  Bxd7 {[%clk 0:01:51]} 18. Nb3 {[%clk 0:01:18]}  Rae8 {[%clk 0:01:45]} 19. O-O-O {[%clk 0:01:17]}  h5 {[%clk 0:01:41]} 20. Nbd4 {[%clk 0:00:46]}  Bxe5 {[%clk 0:01:30]} 21. Nxe5 {[%clk 0:00:35]}  Rxe5 {[%clk 0:01:30]} 22. Rhe1 {[%clk 0:00:36]}  Rfe8 {[%clk 0:01:23]} 23. Kd2 {[%clk 0:00:35]}  c6 {[%clk 0:01:16]} 24. b4 {[%clk 0:00:35]}  a6 {[%clk 0:01:13]} 25. a4 {[%clk 0:00:34]}  Kg7 {[%clk 0:01:10]} 26. Rb1 {[%clk 0:00:30]}  Rg5 {[%clk 0:01:10]} 27. Re2 {[%clk 0:00:30]}  Rg3 {[%clk 0:01:02]} 28. b5 {[%clk 0:00:29]}  axb5 {[%clk 0:00:54]} 29. axb5 {[%clk 0:00:28]}  cxb5 {[%clk 0:00:55]} 30. c6 {[%clk 0:00:25]}  Bg4 {[%clk 0:00:54]} 31. Ree1 {[%clk 0:00:18]}  Rxg2+ {[%clk 0:00:52]} 32. Kc3 {[%clk 0:00:19]}  h4 {[%clk 0:00:47]} 33. Rxb5 {[%clk 0:00:19]}  h3 {[%clk 0:00:43]} 34. Rb7+ {[%clk 0:00:18]}  Kh6 {[%clk 0:00:39]} 35. c7 {[%clk 0:00:17]}  h2 {[%clk 0:00:34]} 36. Rb8 {[%clk 0:00:17]}  Re7 {[%clk 0:00:28]} 37. c8=Q {[%clk 0:00:14]}  Bxc8 {[%clk 0:00:27]} 38. Rxc8 {[%clk 0:00:15]}  Rg1 {[%clk 0:00:20]} 39. Rh8+ {[%clk 0:00:14]}  Rh7 {[%clk 0:00:19]} 40. Rxh7+ {[%clk 0:00:07]}  Kxh7 {[%clk 0:00:19]} 41. Nf3 {[%clk 0:00:08]}  Rxe1 {[%clk 0:00:15]} 42. Nxh2 {[%clk 0:00:08]}  Ra1 {[%clk 0:00:14]} 43. Ng4 {[%clk 0:00:07]}  Ra4 {[%clk 0:00:13]} 44. Nf6+ {[%clk 0:00:06]}  Kh6 {[%clk 0:00:09]} 45. Nxd5 {[%clk 0:00:07]}  Kg7 {[%clk 0:00:08]} 46. Kd3 {[%clk 0:00:07]}  Ra8 {[%clk 0:00:08]} 47. e4 {[%clk 0:00:07]}  Kf7 {[%clk 0:00:09]} 48. Kd4 {[%clk 0:00:07]}  Rd8 {[%clk 0:00:08]} 49. Ke5 {[%clk 0:00:07]}  Re8+ {[%clk 0:00:08]} 50. Kf4 {[%clk 0:00:07]}  Rh8 {[%clk 0:00:04]} 51. e5 {[%clk 0:00:06]}  Ke6 {[%clk 0:00:04]} 52. Nc7+ {[%clk 0:00:06]}  Kd7 {[%clk 0:00:04]} 53. Nd5 {[%clk 0:00:07]}  Rf8+ {[%clk 0:00:04]} 54. Ke4 {[%clk 0:00:05]}  Ke6 {[%clk 0:00:04]} 55. Nf4+ {[%clk 0:00:05]}  Rxf4+ {[%clk 0:00:02]} 56. Kxf4 {[%clk 0:00:05]}  g5+ {[%clk 0:00:03]} 57. Ke4 {[%clk 0:00:04]}  g4 {[%clk 0:00:03]} 58. Kf4 {[%clk 0:00:05]}  g3 {[%clk 0:00:04]} 59. Kxg3 {[%clk 0:00:05]}  Kxe5 {[%clk 0:00:04]} 1/2-1/2


[Site "https://www.chess.com"]

[Event "Titled Tuesday Blitz February 07 Late 2023"]
[White "Womacka, Mathias"]
[Black "Stolz, Mike"]
[WhiteFideId "4611390"]
[BlackFideId "4617134"]
[WhiteElo "2396"]
[BlackElo "2330"]
[Result "1-0"]
[Round "08"]
[TimeControl "180+2"]
[Date "2023.02.07"]
[WhiteClock "0:02:39"]
[BlackClock "0:02:10"]

1. e4 {[%clk 0:03:00]}  c5 {[%clk 0:02:58]} 2. Nf3 {[%clk 0:03:00]}  d6 {[%clk 0:02:58]} 3. d4 {[%clk 0:02:59]}  cxd4 {[%clk 0:02:59]} 4. Nxd4 {[%clk 0:02:59]}  Nf6 {[%clk 0:02:59]} 5. Nc3 {[%clk 0:02:59]}  a6 {[%clk 0:02:58]} 6. Be2 {[%clk 0:02:57]}  g6 {[%clk 0:02:56]} 7. O-O {[%clk 0:02:55]}  Bg7 {[%clk 0:02:56]} 8. Re1 {[%clk 0:02:55]}  O-O {[%clk 0:02:56]} 9. Bf1 {[%clk 0:02:55]}  Nc6 {[%clk 0:02:55]} 10. Nb3 {[%clk 0:02:54]}  Be6 {[%clk 0:02:54]} 11. Bg5 {[%clk 0:02:52]}  Rc8 {[%clk 0:02:54]} 12. Nd5 {[%clk 0:02:51]}  Nxd5 {[%clk 0:02:30]} 13. exd5 {[%clk 0:02:49]}  f6 {[%clk 0:02:26]} 14. Be3 {[%clk 0:02:45]}  Bxd5 {[%clk 0:02:16]} 15. Qxd5+ {[%clk 0:02:46]}  Kh8 {[%clk 0:02:11]} 16. c3 {[%clk 0:02:44]}  b5 {[%clk 0:02:10]} 17. a4 {[%clk 0:02:40]}  b4 {[%clk 0:02:10]} 18. Bxa6 {[%clk 0:02:39]} 1-0


[Site "https://www.chess.com"]

[Event "Titled Tuesday Blitz February 07 Late 2023"]
[White "Floresvillar Gonzalez, Luis Migu"]
[Black "Li, Hui"]
[WhiteFideId "5100542"]
[BlackFideId "15400310"]
[WhiteElo "2043"]
[BlackElo "1963"]
[Result "0-1"]
[Round "08"]
[TimeControl "180+2"]
[Date "2023.02.07"]
[WhiteClock "0:00:16"]
[BlackClock "0:00:02"]

1. d4 {[%clk 0:03:00]}  d5 {[%clk 0:02:58]} 2. c3 {[%clk 0:03:00]}  Nf6 {[%clk 0:02:56]} 3. Bf4 {[%clk 0:03:01]}  Bf5 {[%clk 0:02:50]} 4. Qb3 {[%clk 0:02:59]}  Qc8 {[%clk 0:02:50]} 5. Nd2 {[%clk 0:02:57]}  e6 {[%clk 0:02:50]} 6. e3 {[%clk 0:02:56]}  Nbd7 {[%clk 0:02:50]} 7. Be2 {[%clk 0:02:55]}  c5 {[%clk 0:02:43]} 8. Ngf3 {[%clk 0:02:54]}  Be7 {[%clk 0:02:36]} 9. O-O {[%clk 0:02:54]}  O-O {[%clk 0:02:32]} 10. Rfe1 {[%clk 0:02:53]}  a6 {[%clk 0:02:32]} 11. a4 {[%clk 0:02:46]}  Nh5 {[%clk 0:02:15]} 12. Ne5 {[%clk 0:02:45]}  Nxf4 {[%clk 0:02:13]} 13. exf4 {[%clk 0:02:45]}  Qc7 {[%clk 0:02:12]} 14. Ndf3 {[%clk 0:02:36]}  c4 {[%clk 0:02:09]} 15. Qd1 {[%clk 0:02:35]}  b5 {[%clk 0:02:02]} 16. axb5 {[%clk 0:02:24]}  axb5 {[%clk 0:02:03]} 17. Nxd7 {[%clk 0:02:24]}  Qxd7 {[%clk 0:02:03]} 18. Ne5 {[%clk 0:02:24]}  Qc7 {[%clk 0:02:03]} 19. g3 {[%clk 0:02:23]}  f6 {[%clk 0:01:57]} 20. Nf3 {[%clk 0:02:15]}  b4 {[%clk 0:01:57]} 21. Qd2 {[%clk 0:02:12]}  b3 {[%clk 0:01:51]} 22. Nh4 {[%clk 0:02:06]}  Be4 {[%clk 0:01:49]} 23. f3 {[%clk 0:02:04]}  Bc2 {[%clk 0:01:48]} 24. Rxa8 {[%clk 0:02:01]}  Rxa8 {[%clk 0:01:48]} 25. Bd1 {[%clk 0:02:02]}  Bxd1 {[%clk 0:01:09]} 26. Qxd1 {[%clk 0:01:56]}  Kf7 {[%clk 0:01:08]} 27. Qe2 {[%clk 0:01:54]}  Ra6 {[%clk 0:01:06]} 28. f5 {[%clk 0:01:51]}  g6 {[%clk 0:00:58]} 29. fxe6+ {[%clk 0:01:47]}  Kf8 {[%clk 0:00:56]} 30. f4 {[%clk 0:01:48]}  f5 {[%clk 0:00:56]} 31. Nf3 {[%clk 0:01:44]}  Kg7 {[%clk 0:00:39]} 32. Kf2 {[%clk 0:01:05]}  Qa5 {[%clk 0:00:37]} 33. Qe5+ {[%clk 0:01:02]}  Bf6 {[%clk 0:00:37]} 34. Qb8 {[%clk 0:00:48]}  Qa2 {[%clk 0:00:23]} 35. Re2 {[%clk 0:00:47]}  Ra7 {[%clk 0:00:11]} 36. Qd6 {[%clk 0:00:41]}  Be7 {[%clk 0:00:02]} 37. Qxd5 {[%clk 0:00:40]}  Qb1 {[%clk 0:00:02]} 38. Qxc4 {[%clk 0:00:37]}  Ra1 {[%clk 0:00:02]} 39. Rd2 {[%clk 0:00:30]}  Qc1 {[%clk 0:00:02]} 40. d5 {[%clk 0:00:27]}  Rb1 {[%clk 0:00:02]} 41. Qxb3 {[%clk 0:00:25]}  Qf1+ {[%clk 0:00:02]} 42. Ke3 {[%clk 0:00:23]}  Bc5+ {[%clk 0:00:02]} 43. Nd4 {[%clk 0:00:21]}  Qe1+ {[%clk 0:00:02]} 44. Re2 {[%clk 0:00:20]}  Qg1+ {[%clk 0:00:02]} 45. Kf3 {[%clk 0:00:18]}  Rf1+ {[%clk 0:00:01]} 46. Rf2 {[%clk 0:00:16]}  Qxf2# {[%clk 0:00:02]} 0-1


[Site "https://www.chess.com"]

[Event "Titled Tuesday Blitz February 07 Late 2023"]
[White "Liu, Leonardo"]
[Black "Fathy, Elameir"]
[WhiteFideId "30965780"]
[BlackFideId "10600396"]
[WhiteElo "1919"]
[BlackElo "2300"]
[Result "0-1"]
[Round "08"]
[TimeControl "180+2"]
[Date "2023.02.07"]
[WhiteClock "0:01:04"]
[BlackClock "0:00:29"]

1. e4 {[%clk 0:02:58]}  c6 {[%clk 0:02:42]} 2. Nf3 {[%clk 0:02:55]}  d5 {[%clk 0:02:42]} 3. Nc3 {[%clk 0:02:55]}  Bg4 {[%clk 0:02:40]} 4. h3 {[%clk 0:02:55]}  Bxf3 {[%clk 0:02:41]} 5. Qxf3 {[%clk 0:02:55]}  e6 {[%clk 0:02:41]} 6. g3 {[%clk 0:02:52]}  Nd7 {[%clk 0:02:39]} 7. Bg2 {[%clk 0:02:52]}  d4 {[%clk 0:02:40]} 8. Ne2 {[%clk 0:02:51]}  Qb6 {[%clk 0:02:26]} 9. O-O {[%clk 0:02:49]}  Ne5 {[%clk 0:02:12]} 10. Qb3 {[%clk 0:02:45]}  d3 {[%clk 0:02:07]} 11. cxd3 {[%clk 0:02:36]}  Qxb3 {[%clk 0:02:07]} 12. axb3 {[%clk 0:02:35]}  Nxd3 {[%clk 0:02:08]} 13. f4 {[%clk 0:02:23]}  Bc5+ {[%clk 0:02:06]} 14. Kh2 {[%clk 0:02:22]}  h5 {[%clk 0:01:56]} 15. Nc3 {[%clk 0:02:20]}  Nf6 {[%clk 0:01:51]} 16. Na4 {[%clk 0:01:53]}  Ng4+ {[%clk 0:01:42]} 17. hxg4 {[%clk 0:01:52]}  hxg4+ {[%clk 0:01:42]} 18. Bh3 {[%clk 0:01:52]}  Rxh3+ {[%clk 0:01:42]} 19. Kg2 {[%clk 0:01:52]}  O-O-O {[%clk 0:01:05]} 20. Nxc5 {[%clk 0:01:45]}  Nxc5 {[%clk 0:01:06]} 21. d4 {[%clk 0:01:42]}  Nxb3 {[%clk 0:00:56]} 22. Rxa7 {[%clk 0:01:41]}  Kb8 {[%clk 0:00:56]} 23. Ra4 {[%clk 0:01:40]}  Rdh8 {[%clk 0:00:54]} 24. Be3 {[%clk 0:01:32]}  Rh2+ {[%clk 0:00:54]} 25. Kg1 {[%clk 0:01:32]}  Rxb2 {[%clk 0:00:44]} 26. Rb4 {[%clk 0:01:17]}  Rhh2 {[%clk 0:00:42]} 27. Rf2 {[%clk 0:01:15]}  Rhxf2 {[%clk 0:00:37]} 28. Bxf2 {[%clk 0:01:12]}  Rb1+ {[%clk 0:00:37]} 29. Kg2 {[%clk 0:01:12]}  Nd2 {[%clk 0:00:36]} 30. Rxb1 {[%clk 0:01:09]}  Nxb1 {[%clk 0:00:36]} 31. Be3 {[%clk 0:01:05]}  Nc3 {[%clk 0:00:35]} 32. e5 {[%clk 0:01:05]}  Nd5 {[%clk 0:00:36]} 33. Bc1 {[%clk 0:01:04]}  b5 {[%clk 0:00:36]} 34. Kf2 {[%clk 0:01:05]}  Kb7 {[%clk 0:00:36]} 35. Ke2 {[%clk 0:01:05]}  Kb6 {[%clk 0:00:36]} 36. Kd2 {[%clk 0:01:06]}  Ka5 {[%clk 0:00:37]} 37. Kc2 {[%clk 0:01:06]}  b4 {[%clk 0:00:33]} 38. Kb3 {[%clk 0:01:06]}  Kb5 {[%clk 0:00:33]} 39. Bd2 {[%clk 0:01:05]}  c5 {[%clk 0:00:31]} 40. dxc5 {[%clk 0:01:02]}  Kxc5 {[%clk 0:00:32]} 41. Be1 {[%clk 0:01:02]}  Kd4 {[%clk 0:00:30]} 42. Bxb4 {[%clk 0:01:01]}  Nxb4 {[%clk 0:00:27]} 43. Kxb4 {[%clk 0:01:02]}  Ke4 {[%clk 0:00:28]} 44. Kc5 {[%clk 0:01:02]}  Kf3 {[%clk 0:00:28]} 45. Kd6 {[%clk 0:01:03]}  Kxg3 {[%clk 0:00:29]} 46. Ke7 {[%clk 0:01:04]}  Kxf4 {[%clk 0:00:29]} 47. Kd6 {[%clk 0:01:04]}  g3 {[%clk 0:00:29]} 0-1


[Site "https://www.chess.com"]

[Event "Titled Tuesday Blitz February 07 Late 2023"]
[White "Talbi, Chafik"]
[Black "Necula, Iulian"]
[WhiteFideId "7903715"]
[BlackFideId "1232380"]
[WhiteElo "2224"]
[BlackElo "1851"]
[Result "1-0"]
[Round "08"]
[TimeControl "180+2"]
[Date "2023.02.07"]
[WhiteClock "0:01:07"]
[BlackClock "0:01:04"]

1. e4 {[%clk 0:03:00]}  c5 {[%clk 0:02:59]} 2. Nf3 {[%clk 0:03:00]}  d6 {[%clk 0:02:59]} 3. Bb5+ {[%clk 0:02:58]}  Bd7 {[%clk 0:02:58]} 4. Bxd7+ {[%clk 0:02:58]}  Qxd7 {[%clk 0:02:59]} 5. O-O {[%clk 0:02:57]}  g6 {[%clk 0:02:59]} 6. c3 {[%clk 0:02:56]}  Nc6 {[%clk 0:02:59]} 7. d4 {[%clk 0:02:56]}  cxd4 {[%clk 0:03:00]} 8. Nxd4 {[%clk 0:02:57]}  Bg7 {[%clk 0:02:59]} 9. Nf3 {[%clk 0:02:51]}  Nf6 {[%clk 0:02:59]} 10. Re1 {[%clk 0:02:51]}  O-O {[%clk 0:02:55]} 11. Bg5 {[%clk 0:02:47]}  h6 {[%clk 0:02:50]} 12. Bxf6 {[%clk 0:02:33]}  Bxf6 {[%clk 0:02:49]} 13. e5 {[%clk 0:02:27]}  Bg7 {[%clk 0:02:49]} 14. exd6 {[%clk 0:02:26]}  Qxd6 {[%clk 0:02:47]} 15. Qxd6 {[%clk 0:02:25]}  exd6 {[%clk 0:02:47]} 16. Nbd2 {[%clk 0:02:24]}  Rfe8 {[%clk 0:02:44]} 17. Nb3 {[%clk 0:02:20]}  Ne5 {[%clk 0:02:43]} 18. Nxe5 {[%clk 0:02:02]}  Rxe5 {[%clk 0:02:41]} 19. Rad1 {[%clk 0:02:00]}  Rxe1+ {[%clk 0:02:40]} 20. Rxe1 {[%clk 0:01:59]}  a5 {[%clk 0:02:38]} 21. a4 {[%clk 0:01:57]}  Ra6 {[%clk 0:02:32]} 22. Nd2 {[%clk 0:01:48]}  Rb6 {[%clk 0:02:29]} 23. Nc4 {[%clk 0:01:45]}  Rb3 {[%clk 0:02:26]} 24. Re2 {[%clk 0:01:45]}  d5 {[%clk 0:02:26]} 25. Nxa5 {[%clk 0:01:44]}  Rb6 {[%clk 0:02:25]} 26. Rd2 {[%clk 0:01:40]}  Bxc3 {[%clk 0:02:20]} 27. Rxd5 {[%clk 0:01:35]}  Bxa5 {[%clk 0:02:15]} 28. Rxa5 {[%clk 0:01:35]}  Rxb2 {[%clk 0:02:15]} 29. g3 {[%clk 0:01:27]}  Kf8 {[%clk 0:02:13]} 30. Kg2 {[%clk 0:01:27]}  Ke7 {[%clk 0:02:12]} 31. Kf3 {[%clk 0:01:27]}  f5 {[%clk 0:02:12]} 32. Ra8 {[%clk 0:01:23]}  Rb4 {[%clk 0:02:06]} 33. h4 {[%clk 0:01:22]}  g5 {[%clk 0:02:05]} 34. h5 {[%clk 0:01:21]}  g4+ {[%clk 0:02:04]} 35. Ke3 {[%clk 0:01:21]}  Kf6 {[%clk 0:01:58]} 36. Rg8 {[%clk 0:01:16]}  Rxa4 {[%clk 0:01:54]} 37. Rg6+ {[%clk 0:01:16]}  Kf7 {[%clk 0:01:54]} 38. Rxh6 {[%clk 0:01:16]}  b5 {[%clk 0:01:53]} 39. Rb6 {[%clk 0:01:14]}  b4 {[%clk 0:01:52]} 40. Kf4 {[%clk 0:01:12]}  Ra2 {[%clk 0:01:43]} 41. Kxf5 {[%clk 0:01:12]}  Rxf2+ {[%clk 0:01:42]} 42. Kxg4 {[%clk 0:01:12]}  Rb2 {[%clk 0:01:39]} 43. Kg5 {[%clk 0:01:12]}  b3 {[%clk 0:01:33]} 44. Rb7+ {[%clk 0:01:12]}  Kg8 {[%clk 0:01:06]} 45. Kg6 {[%clk 0:01:11]}  Kf8 {[%clk 0:01:05]} 46. h6 {[%clk 0:01:08]}  Rg2 {[%clk 0:01:04]} 47. Rxb3 {[%clk 0:01:07]} 1-0


[Site "https://www.chess.com"]